{"text_format":"3","workbook":"xlsx","n_sheets":1,"sheets":["GRUPO ABC"],"read":"whole","date_system":"1900"}

{"sheet":"GRUPO ABC","index":0,"n_rows":165,"n_cols":12,"rows_kept":165,"merged":[[0,0,0,11],[1,0,1,11],[3,2,3,6],[3,7,3,11],[4,2,4,6],[4,7,4,11],[63,0,64,0]]}
["FORMULARIO 5. - LISTADO MENÚS POR GRUPOS ALIMENTICIOS"]
[]
[]
[null,null,"SERVIDO A LA MESA",{"$nulls":4},"EMPACADO"]
[null,null,"VALOR CON IVA INCLUIDO",{"$nulls":4},"VALOR CON IVA INCLUIDO"]
["ITEM ","GRUPO A: REFRIGERIOS","DE 1 A 50 UNIDADES","DE 51 A 100 UNIDADES","DE 101 A 150 UNIDADES","DE 151- 200 UNIDADES","DE 201 EN ADELANTE","DE 1 A 50 UNIDADES","DE 51 A 100 UNIDADES","DE 101 A 150 UNIDADES","DE 151- 200 UNIDADES","DE 201 EN ADELANTE"]
[1,"Pastel hojaldrado de jamón y queso (120 gramos)"]
[2,"Pastel hojaldrado de carne (120 gramos)"]
[3,"Pastel hojaldrado de pollo con verduras (120 gramos)"]
[4,"Pastel hojaldrado de pollo con champiñones (120 gramos)"]
[5,"Pastel hojaldrado de queso (100 gramos)"]
[6,"Palo de Queso frito (120 gramos)"]
[7,"Croissant de jamón y queso (120 gramos)"]
[8,"Croissant de pollo con champiñones (120 gramos)"]
[9,"Croissant de queso (120 gramos)"]
[10,"Croissant con champiñones y queso (120 gramos)"]
[11,"Almojabana (60 gramos)"]
[12,"Pastel hojaldrado (90 gramos): Queso"]
[13,"Pastel hojaldrado (90 gramos): Jamón y Queso"]
[14,"Pastel hojaldrado (90 gramos): Hawaiano"]
[15,"Pastel hojaldrado (90 gramos): Guayaba o Arequipe."]
[16,"Pastel de Pollo Frito (100 gramos)"]
[17,"Sandwich gratinado (220 gramos ) de  jamon y queso o pollo con queso en salsa marfil."]
[18,"Sándwich gratinado (220 gramos): Jamón y queso, Hawaiano, Pollo, Pan danés bañado en salsa bechamel y gratinado"]
[19,"Sándwich   de pollo (200 gramos): Pan danés con ajonjolí, pechuga de pollo desmechada, lechuga, queso, salsa golf."]
[20,"Sandwich catalán (120 gramos): Pan danés, jamón y queso, lechuga pepinillo agridulce, salsas."]
[21,"Sandwich sencillo (120 gramos): Pan danés, jamón, queso, salsas, lechuga."]
[22,"Sandwich de atún con verduras (120 gramos)"]
[23,"Sandwich tres carnes: Jamón de cerdo, jamón de pollo, pernil, queso, en pan aliñado o en pan danés (200 gramos)"]
[24,"Hamburguesa  con carne de  res (125 gramos cocida), queso mozarella, tocineta, lechuga, salsas."]
[25,"Tostada Gratinada: jamón, champiñones, queso y salsas (150 gramos)"]
[26,"Volován de atún y verduras (80 gramos)"]
[27,"Volován de pollo y verduras (80 gramos)"]
[28,"Creppes  rellenos de  jamón  y queso (150 gramos)"]
[29,"Creppes  rellenos de pollo con  queso o champiñones  (150 gramos)"]
[30,"Wraps  de pollo (150 gramos):  rellena de deditos de pollo apanado, queso mozzarella, miel mostaza, lechuga y tomate"]
[31,"Wraps de jamón y queso mozarella, lechuga, tomates, miel mostaza. (150 gramos)."]
[32,"Wraps Napolitano: Tomate, albahaca, queso y salsa napolitana (150 gramos)"]
[33,"Wraps Silvestre: Relleno de pollo, champiñones, tocineta, queso mozarella, en salsa bechamel (150 gramos)"]
[34,"Wraps Tropical: Pollo, piña en trozos, maíz tierno, tocineta, en salsa agridulce. (150 gramos)"]
[35,"Empanadas chilena  (80 gramos): Jamón y queso"]
[36,"Empanadas chilena (80 gramos): Hawaiana"]
[37,"Empanadas chilena (80 gramos): Salami"]
[38,"Empanadas chilena (80 gramos): Pollo con verduras"]
[39,"Empanadas chilena (80 gramos): Carne"]
[40,"Empanadas chilena (80 gramos):  Ranchera."]
[41,"Empanada Argentina (80 gramos)"]
[42,"Panzerottis (100 gramos): Hawaiano"]
[43,"Panzerottis (100 gramos): Queso"]
[44,"Panzerottis (100 gramos): Jamón y queso"]
[45,"Panzerottis (100 gramos):  Guayaba o Arequipe."]
[46,"Calzonys (100 gramos): Jamón y queso."]
[47,"Calzonys (100 gramos): Hawaiano"]
[48,"Arepas venezolanas: (240 grms) Arepa asada al carbón y rellena con carne de res desmechada, maíz tierno, guacamole, chorizo, frijol refrito)"]
[49,"Refrigerio navideño: Porción de natillas (150 gramos)                                Dos buñuelos de 50 gramos cada uno                                                         Una hojuela de 25-30 gramos"]
[50,"Salpicón Sencillo 9 onzas"]
[51,"Salpicón Sencillo 12 onzas"]
[52,"Salpicón Especial 12 onzas con queso y helado"]
[53,"Ensalada de Frutas Sencilla (9 onzas)"]
[54,"Ensalada de Frutas Sencilla (12 onzas)"]
[55,"Ensalada de Frutas Especial (con queso y helado) (12 onzas)"]
[null,"SUB-TOTAL GRUPO A: REFRIGERIOS",{"$f":"SUM(C7:C61)","v":0},{"$f":"SUM(D7:D61)","v":0},0,0,0,0,0,0,0,0]
[null,"TOTAL GRUPO A: REFRIGERIOS",{"$f":"SUM(C62:L62)","v":0}]
["ITEM","GRUPO B: DESAYUNOS, ALMUERZOS, CENAS. "]
[null,"DESAYUNOS"]
[1,"Jugo natural: Naranja, Piña o Papaya (9 onzas)                                                                        Café en leche o chocolate en leche (8 onzas)\nCreps de pollo y champiñones  (220 gramos)\nEnsalada tropical ( 70 gramos): Lechuga, papaya, melón\nCesta de panadería surtida  (30 gramos): Pan de la casa, croissant, francés, pan integral.\n"]
[2,"Plato de fruta surtido (70 gramos): Papaya, sandía, melón                                                                                     Tabla de quesos (75 gramos): Gruyer, Holandés y Sabana\nOmelet con champiñón gratinado con salsa Mornay (Bechamel, mostaza francesa y queso parmesano). \nPan Francés\nJugo natural o gaseosa (9 onzas)\n"]
[3,"Plato de frutas surtido (70 gramos): Papaya, sandía, melón\nCanelones de carne (100 gramos)\nVerdura gratinada  (70 gramos)\nCesta de panadería surtida (30 gramos): Pan de la casa, croissant, francés, pan integral.\nJugo natural o gaseosa (9 onzas)\n"]
[4,"Creps a la jardinera (Creps de frutas y combinación de helados) 200 gramos\nJugo natural o gaseosa (9 onzas)\n"]
[5,"Jugo de frutas natural (9 onzas): Naranja, piña o papaya\nHuevos revueltos con tocineta (2 unidades), 10 gramos tocineta.\nChoricillos (3 unidades)\nQueso blanco (35 gramos)\nArepa tela (45 gramos)\nPan tostado (15-20 gramos)\nMantequilla (12-15 gramos)\nCafé o chocolate (8 onzas)\n"]
[6,"Jugo de frutas natural (9 onzas): Naranja, piña o papaya.\nHuevos revueltos con hogao (2 unidades)\nArepa de chócolo (100-110 gramos)\nQueso blanco  (35 gramos)\nPan tostado (15- 20 gramos)\nMantequilla (12-15 gramos)\nCafé o chocolate en leche (8 onzas)\n"]
[7,"Café o chocolate en leche (9 onzas)                                                                                  Arepa de chócolo  (100 - 110 gramos)                                                                         Porción de quesito (30 gramos)                                                    Pandequeso   (40 gramos)                                                                            Mantequilla (12-15 gramos)"]
[8,"Jugo de frutas natural (9 onzas): Naranja, piña o papaya\nOmelet de pollo y jamón  (50 gramos)\nArepa tela (45 gramos)\nTostadas de pan (2 unidades)\nQueso blanco (35 gramos)\nMantequilla (12-15 gramos)\nCafé o chocolate (8 onzas)\n"]
[9,"Café o chocolate en leche  (9 onzas)                                                                           Jugo de Naranja (9 onzas)                                                                        Huevos pericos  (2 unidades)                                                                           Jamón (10 gramos)                                                                                            Tostadas de pan (2 unidades)                                                                          Mermelada y mantequilla (12-15 gramos cada uno)                                                                              "]
[10,"Arepa tela  (80-90 gramos)                                                             Mantequilla (12-15 gramos)                                                                               Porción de quesito (55 gramos)                                                                                          Huevo perico (2 unidades)                                                                          Milo, chocolisto, chocolate en leche, café (9 onzas)"]
[11,"Arepa de chócolo de 100-110 gramos                                                  Mantequilla  (12-15 gramos)                                                                           Porción de quesito (55 gramos)                                                                                          Huevo revuelto (2 unidades)                                                                      Milo, chocolisto, chocolate en leche, café en leche (9 onzas)"]
[12,"Arepa tela  (80-90 gramos)                                                             Mantequilla   (12-15 gramos)                                                                               Porción de quesito (55 gramos)                                                       Mortadela o Jamón (40 gramos)                                                                          Milo, chocolisto, chocolate en leche, café en leche (9 onzas)                                                "]
[13,"Café, Cocoa, Chocolate en leche (9 onzas)                                                                    Huevo (25 grs)                                                                                              Cuajada (40 grs)                                                                                               Arepa Tela (45 grs)                                                                             Mantequilla (12-15 grs)                                                                                 Palito de queso (40 grs)"]
[14,"Café, Cocoa, Chocolate en leche (9 onzas)                                                                  Pollo a la plancha 50 grs                                                                                          Queso (20 grs)                                                                                                  Arepa tela (45 grs)                                                                                                 Mantequilla  (12-15 grs)                                                                                      Pan (25 grs)"]
[15,"Café, Cocoa, Chocolate en leche (9 onzas)                                                     Quesito (30 grs)                                                                                      Salchichón 30 grs                                                                                             Arepa tela (45 grs)                                                                              Mantequilla (12-15 grs)                                                                            Tostada (20 grs)"]
[16,"Café, Cocoa, Chocolate en leche (9 onzas)                                                        Quesito (20 grs)                                                                                                 Torta de atún (40 grs)                                                                                    Arepa tela (45 grs)                                                                               Mantequilla (12-15 grs)                                                                           Buñuelo (25 grs)"]
[17,"Café, Cocoa, Chocolate en leche (9 onzas)                                                              Huevo (25 grs)                                                                                            Salchicha (25 grs)                                                                                            Arepa tela (45 grs)                                                                                            Salsa de Tomate (8 grs)                                                                          Croissant  (40 grs)                                                                               Mantequilla (12-15 gramos)"]
[18,"Café, Cocoa, Chocolate en leche (9 onzas)                                                              Chorizo (50 grs)                                                                                               Huevo (25 grs)                                                                                                  Arepa tela (45 grs)                                                                              Mantequilla (12-15 grs)                                                                                 Palito de queso (40 grs)"]
[19,"Café, Cocoa, Chocolate en leche (9 onzas)                                                                Jamón (40 grs)                                                                                                 Queso (20 grs)                                                                                                  Arepa Tela (45 grs)                                                                                             Salsa (8 grs)                                                                                                           Pan (25 grs)                                                                                                Mantequilla (12-15 gramos)"]
[20,"Café, Cocoa, Chocolate en leche (9 onzas)                                                             Huevo y carne desmechada (60 grs)                                                        Arepa Tela (45 grs)                                                                                   Calentado (100 grs)                                                                               Mantequilla (12-15 grs)                                                                            Galletas (20 grs)"]
[21,"Café, Cocoa, Chocolate en leche (9 onzas)                                                            Quesito (20 grs)                                                                                                Torta de Carne (40 grs)                                                                                 Arepa Tela (45 grs)                                                                                    Calentado (100 grs)                                                                            Mantequilla (12-15 grs)                                                                                    Pan (30 grs)"]
[22,"Café, Cocoa, Chocolate en leche (9 onzas)                                                                   Quesito (30 grs)                                                                                        Salchichón (30 grs)                                                                                          Arepa Tela (45 grs)                                                                                 Calentado (100 grs)                                                                                 Mantequilla (12-15 grs)                                                                             Tostada (20 grs)"]
[23,"Café, Cocoa, Chocolate en leche (9 onzas)                                                             Jamón (40 grs)                                                                                                 Queso (20 grs)                                                                                                 Arepa Tela (45 grs)                                                                                       Calentado (100 grs)                                                                                          Salsa Showy (8 grs)                                                                                             Pan (30 grs)                                                                                               Mantequilla (12-15 gramos)"]
[24,"Café, Cocoa, Chocolate en leche (9 onzas)                                                               Croqueta de Pollo (40 grs)                                                                        Salchicha (20 kgr)                                                                                            Arepa Tela (45 grs)                                                                                    Calentado (100 grs)                                                                                                Salsa de tomate (8 grs)                                                                               Croissant (20 grs)                                                                                  Mantequilla (12-15 gramos)"]
[25,"Café, Cocoa, Chocolate en leche (9 onzas)                                                           Chorizo (50 grs)                                                                                                    Huevo (25 grs)                                                                                                 Arepa Tela (45 grs)                                                                                   Calentado (100 grs)                                                                                  Mantequilla (12-15 grs)                                                                                 Palito de queso (20 grs)"]
[26,"Café, Cocoa, Chocolate en leche (9 onzas)                                                              Torta de Atún (40 grs)                                                                                    Arepa Tela (45 grs)                                                                                  Calentado (100 grs)                                                                               Mantequilla (12-15 grs)                                                                               Buñuelo (25 grs)"]
[null,"SUB-TOTAL GRUPO B: DESAYUNOS",{"$f":"SUM(C66:C91)","v":0},{"$f":"SUM(D66:D91)","v":0},0,0,0,0,0,0,0,0]
[null,"TOTAL GRUPO B: DESAYUNOS",{"$f":"SUM(C92:L92)","v":0}]
["ITEM","ALMUERZOS Y CENAS"]
[1,"Carne de  res, cerdo, pollo a  la plancha (140 grs )\nArroz  (blanco, verduras, cabello de angel ) (160 grs)\nPapa o yuca o  tajada  de maduro  (80-100 grs)\nEnsalada (80 grs)                                                                                      \nFruta ( 40-50 grs )                                                                               "]
[2,"Carne de  res, cerdo, pollo a  la plancha (140 grs )                                 Sopa: Lentejas, pastas, tortilla, verduras, papa criolla, guineo, espinacas, zanahoria. (200 ml)\nArroz  (blanco, verduras, cabello de angel (160 grs)\nPapa  o yuca o  tajada  de maduro  (80-100 grs)\nEnsalada (80 grs)                                                                                      \nFruta ( 40-50 grs  )"]
[3,"Milanesa de pollo o Res en salsa de champiñones (100 grs)                                                                                               Papa en salsa de queso (80 grs)                                                         Ensalada: lechuga, brócoli, coliflor, zanahoria (100 grs)                           Arroz (blanco, verduras, cabello de angel) (150 grs)                                                                               Sopa de verduras (250 cc)                                                                           Arepa o Pan                                                                                        "]
[4,"Cerdo en salsa de frutas o Desmechada con huevo (100 grs)                                                                                      Papa Chip (80 grs)                                                                                      Ensalada oriental (100 grs)                                                                              Arroz (blanco, verduras, cabello de angel) (150 grs)                                                                             Crema de choclo (250 cc)                                                                              Arepa o Pan                                                                   "]
[5,"Costilla a la BBQ o Filete de pollo a la plancha (100 grs)                                                                                                     Croquetas de yuca (80 grs)                                                                          Ensalada de repollo y zanahoria y pasas (100 grs)                                  Arroz (blanco, verduras, cabello de angel) (150 grs)                                                                                Sopa de tortilla (250 cc)                                                                                Arepa o Pan                                                                          "]
[6,"Róbalo en salsa tártara o Res en salsa de humo (100 grs)                                                                                                Papa Buñuelo (80 grs)                                                                                      Sopa de Blanquillo (250 cc)                                                                     Ensalada Verde (100 grs)                                                                               Arroz (blanco, verduras, cabello de angel) (150 grs)                                                                               Arepa o Pan                                                                           "]
[7,"Chicharrón o Res a la plancha (100 grs)                                              Patacón (80 grs)                                                                                            Fríjoles (250 cc)                                                                                            Ensalada de repollo y tomate (100 grs)                                                   Arroz (blanco, verduras, cabello de angel) (150 grs)                                                                             Arepa o Pan                                                                            "]
[8,"Res Encebollada (100 grs)                                                                                    Papa a la francesa (80 gr)                                                                                    Sopa de las dos papas (250 cc)                                                                  Ensalada de Remolacha (100 grs)                                                                    Arroz (150 grs)                                                                                                         Arepa o Pan                                                                          "]
[9,"Róbalo apanado (100 grs)                                                                               Papa Primavera (80 grs)                                                                                    Sopa de Espinacas (250 cc)                                                                            Arroz (blanco, verduras, cabello de angel) (150 grs)                                                                          Ensalada de remolacha y zanahoria (100 grs)                                         Arepa o Pan                                                                       "]
[10,"Sobrebarriga a la criolla (100 grs)                                                                  Yuca Frita (80 grs)                                                                                              Sopa de pataconcitos (250 cc)                                                                     Arroz (blanco, verduras, cabello de angel) (150 grs)                                                                                 Ensalada de lechuga, zanahoria y pepino (100 grs)                                Arepa o Pan                                                                                   "]
[11,"Chuletas de cerdo o Espaguetis con pollo (100 grs)                                    Torta de ahuyama (80 grs)                                                                              Sopa de Guineo (250 cc)                                                                                Arroz (blanco, verduras, cabello de angel) (150 grs)                                                                            Ensalada de repollo, zanahoria y piña (100 grs)                                     Arepa o Pan                                                                         "]
[12,"Posta al vino o Estofado (100 grs)                                                                   Papa Rellena (80 grs)                                                                                       Sopa de las dos papas (250 cc)                                                                      Arroz (blanco, verduras, cabello de angel) (150 grs)                                                                              Ensalada lechuga, pepino y habichuela (100 grs)                                    Arepa o Pan                                                                          "]
[13,"Filete de Pollo en salsa de fruta (100 grs)                                               Papas al Vapor (80 grs)                                                                                    Sopa de Blanquillo (250 cc)                                                                             Arroz (blanco, verduras, cabello de angel) (150 grs)                                                                          Ensalada de remolacha, habichuela, coliflor (100 grs)                             Arepa o Pan                                                                              "]
[14,"Mondongo (250 cc)                                                                                            Papa a la francesa (80 grs)                                                                               Arroz (blanco, verduras, cabello de angel) (150 grs)                                                                                  Ensalada de tomate y cebolla (100 grs)                                                   Banano                                                                                                                    Arepa o Pan "]
[15,"Chuleta a la BBQ o Gulasch (100 grs)                                                  Buñuelos de  yuca (80 grs)                                                                             Crema de Zanahoria (250 cc)                                                                           Arroz (150 grs)                                                                                                Ensalada de repollo y frutas (100 grs)                                                    Arepa o Pan                                                                              "]
[16,"Cerdo al vino tinto (100 grs)                                                                         Tortas de banano (80 grs)                                                                               Sopa de tortilla (250 cc)                                                                                  Arroz (blanco, verduras, cabello de angel) (150 grs)                                                                                   Ensalada de lechuga, pepino, tomate y zanahoria  (100 grs)                                                                                                       Arepa  o Pan                                                                                      "]
[17,"Pechuga a la florentina (pechuga rellena con espinacas, jamón y queso) o Tortas de Carne (res, cerdo molida ) (100 grs)                                                                                                             Papa a la Francesa (80 grs)                                                                           Crema de Esparragos (250 cc)                                                                      Arroz (blanco, verduras, cabello de angel) (150 grs)                                                                                      Ensalada de verduras y maicitos (100 grs)                                              Arepa o Pan                                                                        "]
[18,"Carne de res, pollo, cerdo a la plancha, o milanesa o muchacho sudado, o posta  a la criolla (125 gramos)                                                              Arroz: blanco, verduras, cabello de angel (150 gramos )                         Papa, Tajada de maduro, Yuca  (90 gramos)                                     Ensalada (100 gramos)                                                                                    Arepa o Pan                                                                                                                                                               "]
[19,"Carne de res, pollo, cerdo a la plancha, o milanesa o muchacho sudado, o posta  a la criolla (125 gramos)                                                               Sopa: Lentejas, pastas, tortilla, verduras, papa criolla, guineo, espinacas, zanahoria. (200 ml)                                                                               Arroz: blanco, verduras, cabello de angel (150 gramos )                         Papa, Tajada de maduro, Yuca  (90 gramos)                                     Ensalada 100 gramos                                                                                     Arepa o Pan "]
[20,"Lomo de cerdo, filete de pollo  en salsa de  champiñon o  estragón  con queso (125 grs)\nArroz  moreno (60 grs)\nPapa al horno (100 grs)\nJuliana de verduras (80 grs)\nSopa de verduras (250 cc )                                                                   \n"]
[21,"Lasagña de  pollo o carne o mixta  (200 grs )\nEnsalada mixta ( 80 grs)\nPan leche (40 grs)\nTorta  (50 grs)\n\n"]
[22,"Goulash de solomo con verduras en salsa de miglas (habichuela, cebolla, zanahoria y apio. (140 gramos):\nJulianas de solomo con zanahoria, habichuela, apio, pimentón.\nArroz Blanco (50 gramos)\nPuré de papa (80 gramos)\nEnsalada hawaiana (100 gramos): Repollo, piña, salsa blanca, uvas pasas.\nCrema de ahuyama con zanahoria 250 c.c\n"]
[23,"Fricasé de pollo ( 140 gramos ): Pechuga de pollo con vegetales en julianas y salsa bechamel. \nArroz verde (con espinaca)  (55 gramos)\nPapa en salsa de pimientos (salsa blanca y pimentón) (90 grs)\nEnsaladilla (120 gramos): Repollo zanahoria, mayonesa \nCrema de tomate  250 c.c\n"]
[24,"Posta en salsa negra (120 gramos)\nArroz con pimentón (50 gramos)\nPuré de papa gratinado (80 gramos)\nEnsalada de verdura agridulce (100 gramos)\nSopa de pastas 250 c.c                                                                                  Arepa o Pan\n"]
[25,"TÍPICO I:                                                                                                        Chicharrón  (120 gramos)\nCarne molida (80 gramos)\nChorizo (62 gramos)\nTajada de maduro ( 1 unidad  aproximadamante de 60grs)\nArroz blanco (50 gramos)\nFrijoles (220 gramos)\nEnsalada de tomate y cebolla ( 80 gramos)                                             Arepa \n"]
[26,"TIPICO II:                                                                                                          Frijoles cargamanto (100 grs)\nArroz blanco (80 grs)                                                                                       Plátano maduro (2 unidades)\nCarne molida (60 grs), chorizo (70 grs), chicharron  (70 grs)\nEnsalada (80 grs)\nArepa (40 grs)                                                          \nBocadillo o Panelita en empaque individual (40 gr)                                                                                      \n"]
[27,"CAZUELA DE FRÍJOLES:\nCarne desmechada (50 gramos)\nChicharroncitos   (50 gramos)\nMaduro picado  ( 30 gramos)\nMaicitos  (15 gramos)\nFrijoles  ( 100 gramos)\nPorción de arroz  ( 40 gramos)\nEnsalada  (80 gramos)                                                                                    Arepa \n\n"]
[28,"Pierna de cerdo a la milanesa ( 120 gramos): Apanada y llevada al horno.\nPapas en salsa blanca  (100 gramos)\nArroz con cabello de Ángel  (55  gramos)\nEnsalada verde (120 gramos): Pepino, tomate, lechuga, vinagreta  \nSopa de verduras (250 c.c.)                                                                             Pan o Arepa \n"]
[29,"Ajiaco: con pollo  (250 ml )                                                                           Arroz blanco   (150 gramos)                                                                              Aguacate (1/4 aguacate)                                                                                                Ensalada  (80 gramos)                                                                                    Banano y arepa"]
[30,"Fiambre: Muchacho o pierna, chicharrón, huevo duro, tajada de maduro, arroz blanco, papa, arepa.  Todo en hoja de biao (De 450a 500 gramos)"]
[31,"Tamal antioqueño (250 gramos)                                                                Arepa redonda\n\n\n"]
[32,"Tamal antioqueño (500 gramos)                                                                Arepa redonda\n\n\n"]
[33,"Tamal tolimense (250 gramos)  \nArepa redonda\n\n"]
[34,"Tamal tolimense (500 gramos)\nArepa redonda\n\n"]
[null,"SUBTOTAL GRUPO B:  ALMUERZOS Y CENAS",{"$f":"SUM(C95:C128)","v":0},{"$f":"SUM(D95:D128)","v":0},0,0,0,0,0,0,0,0]
[null,"TOTAL GRUPO B: ALMUERZOS  Y CENAS",{"$f":"SUM(C129:L129)","v":0}]
["ITEM","GRUPO C: Bebidas no alcohólicas, snacks, postres, entre otros."]
[null,"POSTRES (PORCIÓN 45 GRAMOS)"]
[1,"Tiramisu  "]
[2,"Cheessecake  chocolate, mora o fresa"]
[3,"Napoleón"]
[4,"Flan de Leche"]
[5,"Tartaleta de caramelo y chocolate"]
[null,"BEBIDAS "]
[6,"Jugos Naturales en Agua 12 onzas"]
[7,"Jugos Naturales en Leche 12 onzas"]
[8,"Yogurt de frutas bolsa de 200 cc"]
[9,"Café Opera (9 onzas)"]
[10,"Café Opera ( 12 onzas)"]
[11,"Café Moka Frío 9 onzas"]
[12,"Café Moka Frío 12 onzas"]
[13,"Milo 12 onzas"]
[14,"Gaseosa 10 onzas"]
[15,"Te Frío 12 onzas"]
[16,"Botella de agua 600 cc"]
[17,"Bolsa de agua 350 cc"]
[18,"Jugo Tetra Pack  200 cc"]
[19,"Jugo en botella plástica no retornable de 250 ml"]
[20,"Jugo en bolsa 200 cc"]
[null,"OTROS"]
[21,"Paquete de papas chips (30 gramos)"]
[22,"Porción de papas a la francesa (80 gramos)"]
[23,"Porción de torta (45 gramos): vainilla, chocolate, manzana y nueces"]
[24,"Galleta de mantequilla (10 gramos)"]
[25,"Aros de cebolla apanada  ( 80 gramos)"]
[26,"Brownie (40 gramos)"]
[27,"Brownie con helado (80 gramos)"]
[29,"Bocadillo o Panelita en empaque individual (20 gr)"]
[null,"SUBTOTAL GRUPO C: BEBIDAS NO ALCOHÓLICAS, SNACKS, POSTRES, ENTRE OTROS",{"$f":"SUM(C133:C162)","v":0},0,0,0,0,0,0,0,0,0]
[null,"TOTAL GRUPO C: BEBIDAS NO ALCOHÓLICAS, SNACKS, POSTRES, ENTRE OTROS",{"$f":"SUM(C163:L163)","v":0}]
[null,"TOTAL GRUPO ABC: REFRIGERIOS, DESAYUNOS, ALMUERZOS, CENAS, BEBIDAS NO ALCOHOLICAS, SNACKS, POSTRES, ENTRE OTROS",{"$f":"C164+C130+C93+C63","v":0}]